bitfinex/quotes_ETHUSD_20250413
["timestamp","ask_amount","ask_price","bid_price","bid_amount"]
[1744577770368,11.575,1589.7,1589.0,7.08081]
[1744577770369,14.745,1589.7,1589.0,7.08081]
[1744577770587,6.9605,1590.0,1589.1,0.77100426]
[1744577770788,6.9605,1590.0,1589.7,6.29044]
[1744577770998,6.29024,1589.8,1589.6,0.8275]
[1744577771301,6.29024,1589.8,1589.4,13.4106]
[1744577771470,6.2897,1589.9,1589.4,0.8275]
[1744577771670,6.29063,1589.7,1589.4,0.8275]
[1744577772085,6.29063,1589.7,1589.4,7.11913]
[1744577772293,6.29108,1589.6,1589.4,0.8275]
[1744577772491,6.29063,1589.7,1589.4,6.29166]
[1744577773572,8.574,1589.9,1589.6,6.29063]
[1744577773770,8.574,1589.9,1589.6,1.46285477]
[1744577773971,6.2904,1589.8,1589.4,7.09174]
[1744577774172,6.2904,1589.8,1589.2,0.8001]
[1744577774173,6.29151,1589.5,1589.2,0.8001]
[1744577774467,0.7671,1589.6,1588.9,0.8001]
[1744577774800,6.29224,1589.3,1588.9,7.09371]
[1744577775001,6.29326,1589.0,1588.6,0.8001]
[1744577775168,6.2929,1589.1,1588.7,6.2943]
[1744577775374,9.3401,1589.4,1589.2,6.29244]
[1744577775573,15.63195,1589.4,1589.0,7.09309]
[1744577775782,8.573,1589.4,1589.1,6.29268]
[1744577775987,14.86482,1589.4,1589.0,7.09322]
[1744577776400,6.29209,1589.3,1589.0,0.8001]
[1744577776569,6.2926,1589.2,1588.8,6.29388]
[1744577776772,6.29212,1589.3,1588.9,6.29347]
[1744577777002,6.29212,1589.3,1589.0,6.29313]
[1744577777206,14.86471,1589.4,1589.0,12.58622]
[1744577777400,14.86486,1589.4,1589.1,12.58552]
[1744577777608,8.573,1589.4,1589.2,6.29246]
[1744577778370,6.17,1589.5,1589.2,1.25852]
[1744577778574,6.17,1589.5,1589.3,6.29185]
[1744577778778,6.17,1589.5,1589.1,6.29285]
[1744577778779,7.05728,1589.8,1589.5,6.29109]
[1744577778977,7.05728,1589.8,1589.4,7.09172]
[1744577778978,8.573,1589.9,1589.4,0.8001]
[1744577779281,8.573,1589.9,1589.7,6.29037]
[1744577779480,8.573,1589.9,1589.8,6.29009]
[1744577780090,6.17,1590.1,1589.8,12.58001]
[1744577780297,6.17,1590.2,1589.9,12.57897]
[1744577780493,21.03117,1590.3,1590.0,6.28927]
[1744577780723,14.743,1590.3,1590.0,6.28927]
[1744577780882,14.743,1590.3,1590.0,12.57837]
[1744577781204,14.743,1590.3,1590.1,6.28883]
[1744577781395,0.05,1590.4,1590.3,6.28812]
[1744577785213,21.81311,1591.3,1590.9,6.28573]
[1744577785398,15.5289,1591.3,1590.8,0.8324]
[1744577785592,6.28491,1591.2,1590.8,7.11852]
[1744577785788,21.92754,1591.3,1590.9,6.2856]
[1744577785988,6.28472,1591.2,1590.8,8.458781]
[1744577786386,6.28472,1591.2,1590.8,14.744721]
[1744577786594,6.28472,1591.2,1590.9,6.28574]
[1744577786790,9.3589,1591.3,1590.8,2.172881]
[1744577786989,8.571,1591.3,1590.8,0.8324]
[1744577787182,8.571,1591.3,1590.9,6.28543]
[1744577787615,5.32488217,1591.4,1590.9,0.47011207]
[1744577787816,5.32488217,1591.4,1590.8,7.11847]
[1744577787817,0.02,1591.4,1591.0,6.28523]
[1744577787987,0.02,1591.4,1591.2,6.28433]
[1744577788192,0.02,1591.4,1591.3,6.28417]
[1744577790018,0.02,1591.4,1591.3,6.34700597]
[1744577790197,0.02,1591.4,1591.3,6.74646615]
[1744577791392,0.02,1591.4,1591.3,6.28417]
[1744577792115,0.02,1591.4,1591.3,7.62426]
[1744577792517,0.02,1591.4,1591.3,7.68709431]
[1744577792723,0.02,1591.4,1591.3,11.09027941]
[1744577793017,0.02,1591.4,1591.3,12.47267941]
[1744577793791,0.02,1591.4,1591.3,11.92267941]
[1744577794918,0.02,1591.4,1591.3,12.53550312]
[1744577795120,0.02,1591.4,1591.3,12.47267941]
[1744577795895,0.02,1591.4,1591.3,11.92267941]
[1744577797748,1e-05,1591.4,1591.3,12.53550709]
[1744577798048,1e-05,1591.4,1591.3,12.47267941]
[1744577798525,0.403347,1592.3,1592.1,6.28101]
[1744577798734,0.403347,1592.3,1592.1,13.273211]
[1744577799095,0.403347,1592.3,1592.1,6.992201]
[1744577799299,6.683747,1592.3,1592.0,6.28133]
[1744577799528,0.403347,1592.3,1592.0,12.56256]
[1744577799831,0.403347,1592.3,1592.1,12.56186]
[1744577800035,0.403347,1592.3,1592.2,6.28061]
[1744577800700,0.403347,1592.3,1592.1,13.817876]
[1744577801129,0.403347,1592.3,1592.2,6.28061]
[1744577802326,0.403347,1592.3,1592.2,6.34340699]
[1744577802630,0.403347,1592.3,1592.2,6.28061]
[1744577802833,0.403347,1592.3,1592.2,7.70881835]
[1744577803834,0.403347,1592.3,1592.2,10.70881835]
[1744577804397,0.403347,1592.3,1592.2,7.70881835]
[1744577804598,0.403347,1592.3,1592.2,6.28061]
[1744577807054,7e-06,1592.3,1592.2,24.13840348]
[1744577807343,0.02,1592.4,1592.3,10.60002]
[1744577807344,7e-06,1592.4,1592.3,10.60002]
[1744577807498,7e-06,1592.4,1592.3,13.64188235]
[1744577808830,12.55277,1593.3,1593.1,6.27692]
[1744577808831,0.8123,1593.3,1593.1,6.27692]
[1744577809035,0.8123,1593.3,1593.2,6.27667]
[1744577809840,0.8123,1593.3,1593.1,6.27692]
[1744577810335,0.8123,1593.3,1593.0,6.27741]
[1744577810336,7.08876,1593.3,1593.0,6.27741]
[1744577810532,0.8123,1593.3,1592.6,8.81099348]
[1744577810743,7.08862,1593.3,1593.0,12.55464]
[1744577811039,7.08862,1593.3,1593.0,6.27731]
[1744577811238,7.08862,1593.3,1593.0,12.5546]
[1744577811535,6.2773,1593.1,1592.7,6.2786]
[1744577811733,3.7838,1593.1,1592.6,6.27889]
[1744577811910,0.7838,1592.8,1592.4,6.27974]
[1744577812106,6.27877,1592.7,1592.3,6.28019]
[1744577812307,6.27877,1592.7,1592.3,12.56026]
[1744577812525,7.06213,1592.8,1592.5,6.27924]
[1744577812735,13.34067,1592.8,1592.4,6.27979]
[1744577812902,7.768343,1592.8,1592.4,12.55949]
[1744577813102,1.490013,1592.8,1592.5,6.27935]
[1744577813307,3.7838,1592.8,1592.6,6.279]
[1744577813502,0.7838,1592.8,1592.7,6.27864]
[1744577813734,0.7838,1592.8,1592.6,6.27891]
[1744577814040,7.06209,1592.8,1592.3,6.28004]
[1744577814216,0.706209,1592.7,1592.1,6.74324873]
[1744577814417,7.0621,1592.8,1592.4,6.27965]
[1744577814620,7.0621,1592.8,1592.4,12.55935]
[1744577815637,7.0621,1592.8,1592.2,6.28058]
[1744577815638,0.7838,1592.8,1592.2,6.28058]
[1744577815813,0.7838,1592.8,1592.6,6.2788]
[1744577816019,0.7838,1592.8,1592.7,6.27864]
[1744577816222,0.7526,1593.0,1592.7,12.55728]
[1744577818845,0.7526,1593.0,1592.8,6.27807]
[1744577819044,0.7526,1593.0,1592.9,6.27785]
[1744577819240,0.7526,1593.0,1592.8,12.55616]
[1744577820137,0.7526,1593.0,1592.9,6.27785]
[1744577821748,0.7526,1593.0,1592.5,6.2794]
[1744577821940,6.2786,1592.8,1592.4,6.27969]
[1744577822113,6.27801,1592.9,1592.3,0.8256]
[1744577822313,6.27845,1592.8,1592.4,12.55941]
[1744577822544,12.55691,1592.8,1592.4,12.55941]
[1744577822741,6.27869,1592.7,1592.4,6.27959]
[1744577822941,13.35967,1592.7,1592.3,12.56028]
[1744577823143,3.0,1592.9,1592.6,6.27904]
[1744577823350,3.802,1592.9,1592.6,12.5579]
[1744577823541,3.802,1592.9,1592.6,6.27886]
[1744577823842,3.802,1592.9,1592.5,6.27935]
[1744577823843,6.092272,1592.9,1592.4,6.27966]
[1744577824142,6.092272,1592.9,1592.4,12.55936]
[1744577824143,12.55695,1592.8,1592.4,12.55936]
[1744577825040,6.27843,1592.8,1592.5,6.27929]
[1744577825245,6.27842,1592.8,1592.5,6.27929]
[1744577826448,12.55694,1592.8,1592.4,12.55936]
[1744577826616,12.55694,1592.8,1592.4,12.55934]
[1744577826810,1.635894,1592.8,1592.2,6.28045]
[1744577827011,0.802,1592.4,1591.9,0.7808]
[1744577827213,6.28031,1592.3,1592.0,6.28134]
[1744577827447,0.802,1592.4,1592.2,6.28057]
[1744577827635,0.802,1592.4,1592.0,6.28136]
[1744577827636,1.510157,1592.4,1592.0,6.28136]
[1744577828244,3.802,1592.6,1592.3,6.28008]
[1744577828426,3.802,1592.6,1592.4,6.27968]
[1744577828611,3.802,1592.6,1592.3,6.28008]
[1744577828817,3.802,1592.6,1592.4,6.2797]
[1744577829246,3.802,1592.6,1592.3,6.28015]
[1744577829411,3.802,1592.6,1592.3,6.28007]
[1744577829616,3.802,1592.6,1592.4,6.2798]
[1744577830125,3.802,1592.6,1592.4,6.0798]
[1744577830332,3.802,1592.6,1592.3,6.28007]
[1744577830537,6.27955,1592.5,1592.2,6.28058]
[1744577830846,10.08112,1592.6,1592.2,6.28025]
[1744577831078,16.36034,1592.6,1592.2,12.56066]
[1744577831354,6.27954,1592.5,1592.2,6.28025]
[1744577832247,10.08112,1592.6,1592.2,6.28025]
[1744577832546,10.08112,1592.6,1592.2,6.908275]
[1744577833363,14.702,1592.7,1592.4,6.27982]
[1744577834047,14.702,1592.7,1592.3,6.28015]
[1744577834237,6.27961,1592.5,1592.2,6.28048]
[1744577834439,6.27961,1592.5,1592.1,6.28087]
[1744577834440,12.55943,1592.5,1592.1,6.28087]
[1744577834745,6.27961,1592.5,1592.2,6.2806]
[1744577834966,12.55923,1592.5,1592.1,6.28085]
[1744577835637,12.55938,1592.5,1592.1,12.56174]
[1744577836167,13.38938,1592.5,1592.1,12.56174]
[1744577836465,6.27989,1592.4,1592.1,6.28085]
[1744577836854,6.27989,1592.4,1592.1,12.56172]
[1744577837466,0.83,1592.5,1592.1,1.79957599]
[1744577837634,15.532,1592.7,1592.4,12.55964]
[1744577837833,8.532,1592.7,1592.6,6.27904]
[1744577838058,7.0,1593.0,1592.7,6.27855]
[1744577838259,7.0,1593.0,1592.8,6.27801]
[1744577838440,15.63968,1593.2,1592.8,6.905811]
[1744577838640,15.63968,1593.2,1592.8,6.27801]
[1744577838842,13.38374,1593.2,1592.8,6.27801]
[1744577839058,6.2772,1593.1,1592.8,6.27801]
[1744577839255,7.10668,1593.2,1592.9,6.27783]
[1744577839461,7.10668,1593.2,1592.9,12.55552]
[1744577839762,0.83,1593.2,1592.9,12.55552]
[1744577839935,0.83,1593.2,1592.9,6.27769]
[1744577840130,7.10673,1593.2,1592.9,6.27769]
[1744577840329,7.10673,1593.2,1592.7,0.8176]
[1744577840330,6.2771,1593.1,1592.7,13.37471]
[1744577840534,6.27761,1593.0,1592.7,6.27853]
[1744577840947,6.98786,1593.1,1592.7,12.55705]
[1744577841266,10.10676,1593.2,1592.6,6.27904]
[1744577841491,6.17,1593.3,1593.1,6.27706]
[1744577841785,14.8289,1593.4,1593.1,6.27706]
[1744577842501,21.10498,1593.4,1593.1,6.27706]
[1744577842780,14.8289,1593.4,1593.0,12.55469]
[1744577843573,21.10497,1593.4,1593.0,6.27732]
[1744577843934,6.27641,1593.3,1592.9,6.27777]
[1744577844138,6.27681,1593.2,1592.9,6.27777]
[1744577844850,6.27681,1593.2,1592.8,6.2782]
[1744577844851,8.553,1593.4,1592.8,6.27825]
[1744577845257,14.82902,1593.4,1593.0,6.27715]
[1744577845453,0.02,1593.4,1593.3,6.27628]
[1744577845684,0.02,1593.4,1593.3,7.721708]
[1744577847650,0.02,1593.4,1593.3,7.09408]
[1744577848048,0.02,1593.4,1593.3,7.15683007]
[1744577848250,0.403347,1593.9,1593.3,8.11013303]
[1744577848451,0.403347,1593.9,1593.8,6.27431]
[1744577849473,0.403347,1593.9,1593.7,13.36688]
[1744577849678,0.403347,1593.9,1593.8,6.27431]
[1744577850642,0.403347,1593.9,1593.8,6.73466912]
[1744577850846,0.403347,1593.9,1593.8,7.51486912]
[1744577851670,0.403347,1593.9,1593.8,12.56758693]
[1744577852065,0.403347,1593.9,1593.8,13.11758693]
[1744577852270,7e-06,1593.9,1593.8,15.97894209]
[1744577852650,7e-06,1593.9,1593.8,10.43894861]
[1744577853857,7e-06,1593.9,1593.8,9.97858949]
[1744577862223,7e-06,1593.9,1593.7,6.27452]
[1744577862520,7e-06,1593.9,1593.8,6.27431]
[1744577863490,7e-06,1593.9,1593.5,9.27539]
[1744577863691,12.548287,1593.9,1593.5,6.27519]
[1744577863877,6.274097,1593.9,1593.6,6.27489]
[1744577864398,6.274097,1593.9,1593.6,12.54983]
[1744577865004,7e-06,1593.9,1593.6,12.54983]
[1744577866111,7e-06,1593.9,1593.8,6.27431]
[1744577866307,7e-06,1593.9,1593.7,6.27452]
[1744577868108,6.27444,1593.8,1593.4,6.27571]
[1744577868407,7.03932,1593.7,1593.4,6.27565]
[1744577868772,7.03932,1593.7,1593.4,12.55141]
[1744577868987,7.03932,1593.7,1593.4,6.27565]
[1744577869776,6.2757,1593.5,1593.2,8.508]
[1744577869977,0.7531,1593.4,1592.5,1.2465697]
[1744577870177,6.27809,1592.9,1592.5,12.55858]
[1744577870482,0.7531,1592.8,1592.5,12.55853]
[1744577870684,7.03154,1592.8,1592.5,1.255853]
[1744577870896,7.03154,1592.8,1592.4,12.55937]
[1744577872413,7.03154,1592.8,1592.3,0.7749]
[1744577872414,6.27864,1592.7,1592.2,6.28061]
[1744577872607,0.7531,1592.5,1592.1,6.28096]
[1744577872808,0.7531,1592.5,1592.1,2.10703]
[1744577873018,0.7531,1592.5,1592.2,6.28024]
[1744577874512,6.2801,1592.4,1591.7,6.56840908]
[1744577874811,12.56017,1592.4,1592.0,6.28125]
[1744577875401,0.7531,1592.5,1592.2,6.2803]
[1744577875602,7.03258,1592.5,1592.2,6.2803]
[1744577876081,7.03258,1592.5,1592.1,6.28099]
[1744577876287,6.28101,1592.1,1591.8,6.28182]
[1744577876487,6.28101,1592.1,1591.7,12.5649]
[1744577876714,6.28101,1592.1,1591.8,6.28211]
[1744577877281,7.03828,1592.2,1591.8,6.28211]
[1744577877487,7.03828,1592.2,1592.0,6.28119]
[1744577877488,0.7576,1592.2,1592.0,6.28119]
[1744577877811,0.7576,1592.2,1592.0,0.628119]
[1744577879117,0.7576,1592.2,1591.7,6.28255]
[1744577879118,6.2812,1592.1,1591.7,6.28255]
[1744577879313,12.5631,1592.0,1591.6,7.073]
[1744577879516,6.63167974,1592.1,1591.4,7.03449]
[1744577879816,6.28225,1591.8,1591.4,6.28374]
[1744577880021,0.7931,1592.0,1591.5,0.7508]
[1744577880183,0.7931,1592.0,1591.6,12.5653]
[1744577880516,6.28221,1591.8,1591.4,7.1486832]
[1744577880721,6.2826,1591.7,1591.4,7.1486832]
[1744577881287,6.28221,1591.8,1591.4,7.1486832]
[1744577881488,0.7931,1592.0,1591.4,0.92775429]
[1744577881816,0.7931,1592.0,1591.4,6.28365]
[1744577881992,6.2818,1591.9,1591.4,6.28347]
[1744577882192,6.28234,1591.8,1591.4,6.28347]
[1744577882517,6.2818,1591.9,1591.2,9.28439]
[1744577882518,7.07626,1591.6,1591.2,9.28439]
[1744577882723,6.28338,1591.5,1591.1,7.05561]
[1744577882932,6.28338,1591.5,1591.1,13.144171]
[1744577883132,6.28338,1591.5,1591.1,12.393371]
[1744577883315,6.28338,1591.5,1591.1,18.678201]
[1744577883706,6.28338,1591.5,1591.1,6.30481]
[1744577883893,7.07616,1591.6,1591.2,6.28427]
[1744577884093,13.35937,1591.6,1591.2,6.28427]
[1744577884911,6.2834,1591.5,1591.2,6.28427]
[1744577885440,6.2834,1591.5,1591.1,12.65249019]
[1744577885644,6.2834,1591.5,1591.1,13.85489902]
[1744577885940,7.0761,1591.6,1591.1,0.02]
[1744577886231,12.45263,1591.7,1591.1,0.02]
[1744577886232,0.8194,1591.2,1591.1,0.02]
[1744577887290,6.17,1591.7,1591.1,0.7826]
[1744577887492,53.874,1591.9,1591.2,6.34739441]
[1744577887493,0.8194,1591.8,1591.2,6.34739441]
[1744577887796,0.8194,1591.8,1591.5,6.28322]
[1744577888547,0.8194,1592.0,1591.9,6.28179]
[1744577888696,21.76905,1592.2,1591.8,6.28201]
[1744577888898,21.76905,1592.2,1591.9,6.28177]
[1744577889247,15.4884,1592.2,1591.9,6.28175]
[1744577889410,9.3184,1592.2,1592.0,6.28124]
[1744577889735,0.8194,1592.2,1591.8,12.56417]
[1744577890227,7.10021,1592.2,1591.8,12.56417]
[1744577890609,6.28128,1592.1,1591.7,6.28251]
[1744577890918,6.28128,1592.1,1591.7,7.615316]
[1744577891227,6.28158,1592.0,1591.7,7.615386]
[1744577891889,7.10002,1592.2,1591.8,6.28219]
[1744577892117,7.10002,1592.2,1591.8,12.56423]
[1744577893052,6.28117,1592.1,1591.7,7.615156]
[1744577893324,7.10009,1592.2,1591.8,7.0435256]
[1744577893523,6.28101,1592.1,1591.8,7.0435256]
[1744577894129,6.28052,1592.3,1591.9,6.28164]
[1744577894297,6.28088,1592.2,1591.8,7.0436856]
[1744577894805,6.28156,1592.0,1591.7,6.28258]
[1744577895216,12.56324,1592.0,1591.6,7.04549]
[1744577895529,6.28156,1592.0,1591.6,13.3911303]
[1744577895691,6.28156,1592.0,1591.6,13.32831]
[1744577896194,12.56316,1592.0,1591.6,13.32831]
[1744577896625,12.56316,1592.0,1591.6,14.661141]
[1744577897128,6.28156,1592.0,1591.6,14.661141]
[1744577897627,15.56727,1592.3,1591.6,2.095431]
[1744577897801,15.56727,1592.3,1591.8,6.28204]
[1744577897802,6.28066,1592.2,1591.8,6.28204]
[1744577898000,6.28119,1592.1,1591.7,6.2825]
[1744577898327,6.28119,1592.1,1591.7,12.565]
[1744577898498,6.28119,1592.1,1591.8,6.28201]
[1744577899198,12.56238,1592.1,1591.8,6.28201]
[1744577899835,6.28119,1592.1,1591.8,6.28201]
[1744577900829,6.28066,1592.2,1591.8,6.28201]
[1744577901042,6.28105,1592.1,1591.8,6.28201]
[1744577904133,6.28068,1592.2,1591.8,12.56406]
[1744577904335,9.287,1592.3,1591.9,6.28165]
[1744577904636,6.28064,1592.2,1591.9,7.11395]
[1744577905111,6.28064,1592.2,1591.9,13.39563]
[1744577905314,6.28064,1592.2,1591.9,7.11395]
[1744577905541,6.28064,1592.2,1591.9,8.5792053]
[1744577906242,6.28138,1592.1,1591.7,7.11475]
[1744577906446,6.28164,1592.0,1591.7,7.11475]
[1744577907116,6.28164,1592.0,1591.7,13.39721]
[1744577907645,6.28164,1592.0,1591.7,7.11475]
[1744577907813,6.28164,1592.0,1591.7,14.736982]
[1744577908953,12.56322,1592.0,1591.7,2.172062]
[1744577909628,12.56321,1592.0,1591.7,8.454532]
[1744577909830,0.7507,1591.9,1591.4,0.7585]
[1744577910046,0.7507,1591.9,1591.7,6.28244]
[1744577911053,0.7507,1591.9,1591.6,6.28286]
[1744577911054,7.03251,1591.9,1591.6,6.28286]
[1744577911232,13.31457,1591.9,1591.6,6.28286]
[1744577911432,7.03251,1591.9,1591.6,6.28286]
[1744577911745,7.03251,1591.9,1591.6,12.56572]
[1744577913354,7.03251,1591.9,1591.6,6.28286]
[1744577914054,7.03251,1591.9,1591.6,12.56569]
[1744577914551,0.7507,1591.9,1591.7,6.28249]
[1744577914751,6.2815,1592.0,1591.7,6.28249]
[1744577915124,0.7747,1592.1,1591.9,6.28179]
[1744577915324,12.56163,1592.2,1591.9,6.28179]
[1744577915530,6.28102,1592.1,1591.8,12.56417]
[1744577915728,12.56223,1592.1,1591.8,6.28204]
[1744577915919,7.05643,1592.0,1591.6,6.28282]
[1744577916119,13.33821,1592.0,1591.6,12.56569]
[1744577917951,7.05643,1592.0,1591.7,6.28243]
[1744577918336,6.28183,1591.9,1591.6,6.28294]
[1744577918530,6.28275,1591.7,1591.4,6.28377]
[1744577918756,0.7747,1591.8,1591.2,6.28444]
[1744577918949,7.05692,1591.8,1591.1,0.8481]
[1744577919146,9.2527,1591.8,1591.5,6.28326]
[1744577919437,0.7747,1591.8,1591.5,6.2832]
[1744577919743,13.33964,1591.8,1591.4,13.32975]
[1744577919934,6.28266,1591.7,1591.4,0.7624]
[1744577920864,12.56551,1591.7,1591.4,0.7624]
[1744577923470,9.2292,1592.0,1591.4,2.095458]
[1744577923630,21.79244,1592.0,1591.6,6.28272]
[1744577924147,6.28182,1591.9,1591.6,6.28272]
[1744577924359,6.28182,1591.9,1591.5,6.28333]
[1744577924360,12.56385,1591.9,1591.5,6.28333]
[1744577924666,6.28227,1591.8,1591.5,6.28333]
[1744577925062,6.28227,1591.8,1591.4,7.046]
[1744577925269,6.28227,1591.8,1591.5,6.28337]
[1744577925765,6.28227,1591.8,1591.5,6.28333]
[1744577925977,12.56468,1591.8,1591.4,13.32965]
[1744577926872,6.28227,1591.8,1591.4,13.32965]
[1744577927039,12.56469,1591.8,1591.4,14.662615]
[1744577927235,15.51068,1592.0,1591.5,0.06282669]
[1744577927436,6.28185,1591.9,1591.6,6.28286]
[1744577927635,6.28185,1591.9,1591.5,6.28334]
[1744577927835,6.28242,1591.8,1591.4,7.04612]
[1744577928073,12.56491,1591.8,1591.5,0.704612]
[1744577928553,12.56496,1591.8,1591.4,13.32967]
[1744577928783,6.28242,1591.8,1591.4,0.7624]
[1744577929086,6.28242,1591.8,1591.5,6.28319]
[1744577929256,12.5648,1591.8,1591.5,6.28319]
[1744577929449,6.28238,1591.8,1591.5,6.28319]
[1744577929653,6.28238,1591.8,1591.5,7.616121]
[1744577930085,12.56478,1591.8,1591.5,1.332931]
[1744577931189,6.28261,1591.7,1591.4,7.04615]
[1744577931702,0.8318,1591.6,1591.3,12.5682]
[1744577932189,0.8318,1591.6,1591.4,6.28371]
[1744577932554,0.8318,1591.6,1591.3,6.284]
[1744577932749,0.8318,1591.6,1591.3,7.54713062]
[1744577932981,0.8318,1591.6,1591.4,6.28376]
[1744577933181,13.39665,1591.8,1591.4,12.63022343]
[1744577933778,0.8318,1591.8,1591.5,6.28308]
[1744577933979,12.56379,1591.9,1591.6,6.28297]
[1744577934493,12.56379,1591.9,1591.5,13.27940134]
[1744577934689,12.56379,1591.9,1591.5,6.99610134]
[1744577934857,12.56379,1591.9,1591.5,13.27935134]
[1744577937686,9.3098,1592.0,1591.8,6.28198]
[1744577937887,15.59126,1592.0,1591.7,6.28247]
[1744577938091,13.32152,1592.2,1591.9,6.2818]
[1744577938269,13.32152,1592.2,1591.8,12.56432]
[1744577939002,6.28101,1592.1,1591.8,6.28216]
[1744577939224,0.7599,1592.2,1592.0,6.28106]
[1744577939428,0.8193,1592.6,1592.1,6.28082]
[1744577939712,4.48685748,1593.0,1592.6,6.27883]
[1744577939713,21.7209,1593.0,1592.6,6.27883]
[1744577939897,27.99861,1593.0,1592.6,6.27883]
[1744577940268,27.99857,1593.0,1592.6,6.27883]
[1744577940611,6.27847,1592.8,1592.4,13.37072]
[1744577940763,21.72089,1593.0,1592.6,6.27884]
[1744577941196,21.72089,1593.0,1592.6,12.55768]
[1744577941898,21.72089,1593.0,1592.4,10.091]
[1744577941899,6.27827,1592.8,1592.4,16.37079]
[1744577942099,21.7209,1593.0,1592.6,6.27877]
[1744577942296,15.4433,1593.0,1592.5,6.27936]
[1744577942598,12.55642,1592.9,1592.5,6.27936]
[1744577942796,6.27821,1592.9,1592.5,6.27936]
[1744577942995,6.27895,1592.7,1592.3,6.28006]
[1744577943178,13.37723,1592.7,1592.3,6.28006]
[1744577943379,7.09825,1592.7,1592.3,6.28006]
[1744577943578,7.09825,1592.7,1592.3,13.9601492]
[1744577944002,6.27905,1592.6,1592.3,7.6800592]
[1744577944619,7.09825,1592.7,1592.3,13.9600992]
[1744577945801,13.37718,1592.7,1592.3,7.6800392]
[1744577945997,7.09823,1592.7,1592.3,7.6800392]
[1744577946190,7.09823,1592.7,1592.4,7.04781392]
[1744577946608,6.2791,1592.6,1592.3,6.28004]
[1744577946798,6.2791,1592.6,1592.2,1.439382]
[1744577946799,6.2791,1592.6,1592.2,14.000242]
[1744577946982,6.2791,1592.6,1592.3,6.28021]
[1744577948474,12.55841,1592.6,1592.2,7.719812]
[1744577948702,6.2791,1592.6,1592.2,7.719812]
[1744577948908,6.28005,1592.4,1592.0,7.05242]
[1744577949093,6.28035,1592.3,1591.9,6.28164]
[1744577949273,6.28035,1592.3,1591.9,12.56328]
[1744577949469,12.56081,1592.3,1591.9,12.56328]
[1744577949970,7.03811,1592.4,1592.1,6.28082]
[1744577950169,13.31812,1592.4,1592.0,6.28139]
[1744577950396,0.7582,1592.4,1592.1,6.28083]
[1744577950796,7.03816,1592.4,1592.1,6.28083]
[1744577951388,13.31819,1592.4,1592.1,6.28083]
[1744577951588,13.31819,1592.4,1592.0,12.56258]
[1744577951904,6.17,1592.5,1592.3,6.28004]
[1744577952077,7.03754,1592.6,1592.2,7.0951]
[1744577952284,0.7582,1592.6,1592.4,6.2797]
[1744577953008,6.9282,1592.8,1592.5,6.27943]
[1744577953216,6.9282,1592.8,1592.3,6.28005]
[1744577953514,12.55796,1592.7,1592.3,7.43820075]
[1744577953680,12.55796,1592.7,1592.3,13.71826075]
[1744577953892,12.55796,1592.7,1592.3,13.71830075]
[1744577954091,6.9282,1592.8,1592.1,6.28074]
[1744577954092,6.27949,1592.5,1592.1,6.28074]
[1744577954287,6.27983,1592.4,1592.1,6.28074]
[1744577954693,0.8166,1592.6,1592.1,6.28074]
[1744577954694,0.8166,1592.6,1592.3,6.2799]
[1744577955087,0.8166,1592.6,1592.4,6.27974]
[1744577955692,6.27956,1592.5,1592.2,6.28054]
[1744577955894,6.27956,1592.5,1592.2,1.333329]
[1744577956099,6.27956,1592.5,1592.2,7.613819]
[1744577957225,13.37489,1592.6,1592.2,13.95710846]
[1744577957531,6.27948,1592.5,1592.2,7.613819]
[1744577960427,6.28022,1592.3,1592.0,6.2814]
[1744577960605,6.28022,1592.3,1591.9,9.787788]
[1744577960606,6.2809,1592.2,1591.9,9.787788]
[1744577960805,0.8166,1592.0,1591.4,0.7718]
[1744577961007,0.8166,1591.8,1591.1,0.02]
[1744577961314,7.10116,1591.2,1591.1,0.02]
[1744577961515,15.13841748,1591.1,1591.0,5.98393641]
[1744577961703,10.10156,1591.1,1591.0,5.98393641]
[1744577961908,21.30841748,1591.1,1591.0,1.98403641]
[1744577962243,6.28812,1590.3,1590.2,12.72629259]
[1744577962459,19.22697748,1590.3,1590.2,12.72629259]
[1744577962603,29.02717748,1590.3,1590.2,12.72629259]
[1744577962802,25.01117687,1590.3,1590.2,4.72649259]
[1744577963019,7.65511,1590.2,1589.6,15.18944599]
[1744577963336,7.65511,1590.2,1589.8,7.99501226]
[1744577963337,7.6563,1589.9,1589.8,7.99501226]
[1744577963496,6.9866,1589.9,1589.8,7.99501226]
[1744577963698,6.17,1589.9,1589.8,7.99501226]
[1744577963895,7.10514,1590.2,1589.8,7.99501226]
[1744577964732,0.8166,1590.2,1589.8,7.99501226]
[1744577964902,0.8166,1590.2,1589.8,14.28487226]
[1744577965097,0.8166,1590.2,1589.8,20.57475226]
[1744577965314,0.8166,1590.2,1589.8,14.28487226]
[1744577965516,0.8166,1590.2,1589.8,20.57479226]
[1744577965696,3.64937006,1590.2,1589.8,14.28487226]
[1744577965903,9.93813006,1590.2,1589.6,6.29064]
[1744577966531,9.93813006,1590.2,1589.7,6.29032]
[1744577967229,6.28909,1590.1,1589.6,6.29064]
[1744577967508,0.628909,1590.0,1589.6,6.29064]
[1744577969062,0.628909,1590.0,1589.3,9.29201]
[1744577969338,18.09285687,1590.3,1590.0,6.28907]
[1744577969339,14.622,1590.3,1590.0,6.28907]
[1744577970630,14.622,1590.3,1590.1,6.28865]
[1744577971741,15.08288173,1590.3,1589.7,6.29048]
[1744577972037,14.622,1590.3,1589.7,3.0]